fUST/lending_fUST_20240828
["ID","MTS","AMOUNT","RATE_DAILY","PERIOD"]
[336397268,1724806249606,-500.0,0.0001178,2]
[336397269,1724806249615,-584.0,0.0001178,2]
[336397270,1724806249626,-3631.71,0.0001178,2]
[336397271,1724806249635,-594.11900171,0.0001178,2]
[336397272,1724806249645,-500.0,0.0001178,2]
[336397273,1724806249654,-500.0,0.0001178,2]
[336397274,1724806249666,-466.07702903,0.0001178,2]
[336397275,1724806249677,-500.0,0.0001178,2]
[336397276,1724806249689,-536.03,0.0001178,2]
[336397277,1724806249698,-500.0,0.0001178,2]
[336397278,1724806249708,-247.28,0.0001178,2]
[336397279,1724806249718,-1145.88,0.0001178,2]
[336397280,1724806249728,-500.0,0.0001178,2]
[336397281,1724806249739,-500.0,0.0001178,2]
[336397282,1724806249750,-500.0,0.0001178,2]
[336397283,1724806249761,-594.38,0.0001178,2]
[336397284,1724806249772,-500.0,0.0001178,2]
[336397285,1724806249782,-500.0,0.0001178,2]
[336397286,1724806249792,-500.0,0.0001178,2]
[336397287,1724806249802,-500.0,0.0001178,2]
[336397288,1724806249812,-500.0,0.0001178,2]
[336397289,1724806249821,-500.0,0.0001178,2]
[336397290,1724806249831,-500.0,0.0001178,2]
[336397291,1724806249840,-500.0,0.0001178,2]
[336397292,1724806249851,-500.0,0.0001178,2]
[336397293,1724806249860,-890.6,0.0001178,2]
[336397294,1724806249871,-221.64111306,0.0001178,2]
[336397295,1724806249882,-500.0,0.0001178,2]
[336397296,1724806249891,-500.0,0.0001178,2]
[336397297,1724806249902,-500.0,0.0001178,2]
[336397298,1724806249912,-500.0,0.0001178,2]
[336397299,1724806249923,-500.0,0.0001178,2]
[336397300,1724806249935,-500.0,0.0001178,2]
[336397301,1724806249945,-824.0,0.0001178,2]
[336397302,1724806249954,-2646.08,0.0001178,2]
[336397303,1724806249964,-500.0,0.0001178,2]
[336397304,1724806249974,-500.0,0.0001178,2]
[336397305,1724806249984,-500.0,0.0001178,2]
[336397306,1724806249995,-500.0,0.0001178,2]
[336397307,1724806250005,-500.0,0.0001178,2]
[336397308,1724806250015,-1443.84,0.0001178,2]
[336397309,1724806250026,-500.0,0.0001178,2]
[336397310,1724806250036,-424.1,0.0001178,2]
[336397311,1724806250047,-500.0,0.0001178,2]
[336397312,1724806250057,-500.0,0.0001178,2]
[336397313,1724806250067,-500.84,0.0001178,2]
[336397314,1724806250078,-500.0,0.0001178,2]
[336397315,1724806250088,-9140.54,0.0001178,2]
[336397316,1724806250098,-500.0,0.0001178,2]
[336397317,1724806250108,-5985.82,0.0001178,2]
[336397318,1724806250117,-500.0,0.0001178,2]
[336397319,1724806250127,-500.0,0.0001178,2]
[336397320,1724806250137,-500.0,0.0001178,2]
[336397321,1724806250277,-3446.53,0.0001178,2]
[336397322,1724806250287,-500.0,0.0001178,2]
[336397323,1724806250296,-500.0,0.0001178,2]
[336397324,1724806250305,-500.0,0.0001178,2]
[336397325,1724806250315,-500.0,0.0001178,2]
[336397326,1724806250325,-500.0,0.0001178,2]
[336397327,1724806250334,-4310.38,0.0001178,2]
[336397328,1724806250345,-500.0,0.0001178,2]
[336397329,1724806250354,-500.0,0.0001178,2]
[336397330,1724806250368,-3212.2,0.0001178,2]
[336397331,1724806250378,-500.0,0.0001178,2]
[336397332,1724806250387,-312.10426371,0.00011873,2]
[336397333,1724806250396,-500.0,0.00011873,2]
[336397334,1724806250406,-163065.587443,0.000119,2]
[336397335,1724806250416,-15057.08566277,0.00011954,2]
[336397336,1724806250425,-255.8,0.00012054,2]
[336397337,1724806250436,-500.0,0.00012054,2]
[336397338,1724806250445,-595.45460509,0.00012054,2]
[336397339,1724806250455,-161.57,0.00012054,2]
[336397340,1724806250464,-1201.41,0.00012054,2]
[336397341,1724806250473,-500.0,0.00012054,2]
[336397342,1724806250482,-500.0,0.00012054,2]
[336397343,1724806250491,-500.0,0.00012054,2]
[336397344,1724806250500,-751.88,0.00012054,2]
[336397345,1724806250510,-500.0,0.00012054,2]
[336397346,1724806250520,-500.0,0.00012054,2]
[336397347,1724806250529,-1498.53,0.00012054,2]
[336397348,1724806250538,-193.73,0.00012054,2]
[336397349,1724806250548,-591.65623637,0.00012054,2]
[336397350,1724806250557,-500.0,0.00012054,2]
[336397351,1724806250567,-185.89,0.00012054,2]
[336397352,1724806250576,-347.94978266,0.00012054,2]
[336397353,1724806250585,-622.05,0.00012054,2]
[336397354,1724806250595,-500.0,0.00012054,2]
[336397355,1724806250605,-500.0,0.00012054,2]
[336397356,1724806250615,-500.0,0.00012054,2]
[336397357,1724806250624,-500.0,0.00012054,2]
[336397358,1724806250634,-500.0,0.00012054,2]
[336397359,1724806250645,-500.0,0.00012054,2]
[336397360,1724806250657,-500.0,0.00012054,2]
[336397361,1724806250668,-500.0,0.00012054,2]
[336397362,1724806250677,-500.0,0.00012054,2]
[336397363,1724806250691,-534.07,0.00012054,2]
[336397364,1724806250703,-500.0,0.00012054,2]
[336397365,1724806250713,-488.05,0.00012054,2]
[336397366,1724806250722,-1049.73,0.00012054,2]
[336397367,1724806250730,-500.0,0.00012054,2]
[336397368,1724806250739,-501.05,0.00012054,2]
[336397369,1724806250751,-500.0,0.00012054,2]
[336397370,1724806250760,-657.46,0.00012054,2]
[336397371,1724806250771,-1039.71,0.00012054,2]
[336397372,1724806250781,-500.0,0.00012054,2]
[336397373,1724806250792,-2307.19,0.00012054,2]
[336397374,1724806250803,-3508.51,0.00012054,2]
[336397375,1724806250814,-500.0,0.00012054,2]
[336397376,1724806250824,-434.94,0.00012054,2]
[336397377,1724806250834,-5222.05,0.00012054,2]
[336397378,1724806250844,-500.0,0.00012054,2]
[336397379,1724806250853,-192.01,0.00012054,2]
[336397380,1724806250863,-16225.43,0.00012054,2]
[336397381,1724806250873,-500.0,0.00012054,2]
[336397382,1724806250883,-4850.17,0.00012054,2]
[336397383,1724806250894,-500.0,0.00012054,2]
[336397384,1724806250904,-921.96,0.00012054,2]
[336397385,1724806250913,-919.1,0.00012054,2]
[336397386,1724806250922,-500.0,0.00012054,2]
[336397387,1724806250932,-2019.09,0.00012054,2]
[336397388,1724806250945,-3719.4,0.00012054,2]
[336397389,1724806250955,-500.0,0.00012054,2]
[336397390,1724806250965,-584.0,0.00012054,2]
[336397391,1724806250976,-3631.71,0.00012054,2]
[336397392,1724806250988,-500.0,0.00012054,2]
[336397393,1724806250999,-484.03,0.00012054,2]
[336397394,1724806251010,-500.0,0.00012054,2]
[336397395,1724806251021,-536.03,0.00012054,2]
[336397396,1724806251031,-1145.88,0.00012054,2]
[336397397,1724806251043,-500.0,0.00012054,2]
[336397398,1724806251052,-500.0,0.00012054,2]
[336397399,1724806251062,-158.73,0.00012054,2]
[336397400,1724806251072,-500.0,0.00012054,2]
[336397401,1724806251083,-500.0,0.00012054,2]
[336397402,1724806251093,-500.0,0.00012054,2]
[336397403,1724806251105,-500.0,0.00012054,2]
[336397404,1724806251116,-500.0,0.00012054,2]
[336397405,1724806251125,-500.0,0.00012054,2]
[336397406,1724806251135,-500.0,0.00012054,2]
[336397407,1724806251146,-500.0,0.00012054,2]
[336397408,1724806251156,-500.0,0.00012054,2]
[336397409,1724806251167,-890.6,0.00012054,2]
[336397410,1724806251176,-500.0,0.00012054,2]
[336397411,1724806251187,-500.0,0.00012054,2]
[336397412,1724806251196,-172.65,0.00012054,2]
[336397413,1724806251205,-500.0,0.00012054,2]
[336397414,1724806251214,-500.0,0.00012054,2]
[336397415,1724806251222,-824.0,0.00012054,2]
[336397416,1724806251232,-2646.08,0.00012054,2]
[336397417,1724806251241,-500.0,0.00012054,2]
[336397418,1724806251251,-500.0,0.00012054,2]
[336397419,1724806251261,-500.0,0.00012054,2]
[336397420,1724806251270,-500.0,0.00012054,2]
[336397421,1724806251279,-1443.84,0.00012054,2]
[336397422,1724806251289,-500.0,0.00012054,2]
[336397423,1724806251299,-572.61,0.00012054,2]
[336397424,1724806251311,-500.0,0.00012054,2]
[336397425,1724806251321,-9140.54,0.00012054,2]
[336397426,1724806251330,-508.88,0.00012054,2]
[336397427,1724806251341,-5985.82,0.00012054,2]
[336397428,1724806251350,-500.0,0.00012054,2]
[336397429,1724806251365,-500.0,0.00012054,2]
[336397430,1724806251374,-500.0,0.00012054,2]
[336397431,1724806251384,-3446.53,0.00012054,2]
[336397432,1724806251394,-500.0,0.00012054,2]
[336397433,1724806251406,-500.0,0.00012054,2]
[336397434,1724806251416,-4310.38,0.00012054,2]
[336397435,1724806251425,-500.0,0.00012054,2]
[336397436,1724806251435,-500.0,0.00012054,2]
[336397437,1724806251451,-3212.2,0.00012054,2]
[336397438,1724806251460,-500.0,0.00012054,2]
[336397439,1724806251469,-1000.0,0.00012121,2]
[336397440,1724806251478,-153.0,0.00012287,2]
[336397441,1724806251487,-11196.5933363,0.000123,2]
[336397442,1724806251496,-500.0,0.00012328,2]
[336397443,1724806251505,-1201.41,0.00012328,2]
[336397444,1724806251515,-500.0,0.00012328,2]
[336397445,1724806251523,-500.0,0.00012328,2]
[336397446,1724806251534,-751.88,0.00012328,2]
[336397447,1724806251543,-500.0,0.00012328,2]
[336397448,1724806251552,-500.0,0.00012328,2]
[336397449,1724806251562,-1498.53,0.00012328,2]
[336397450,1724806251572,-500.0,0.00012328,2]
[336397451,1724806251581,-500.0,0.00012328,2]
[336397452,1724806251590,-500.0,0.00012328,2]
[336397453,1724806251600,-500.0,0.00012328,2]
[336397454,1724806251610,-500.0,0.00012328,2]
[336397455,1724806251621,-500.0,0.00012328,2]
[336397456,1724806251630,-500.0,0.00012328,2]
[336397457,1724806251640,-500.0,0.00012328,2]
[336397458,1724806251649,-500.0,0.00012328,2]
[336397459,1724806251659,-500.0,0.00012328,2]
[336397460,1724806251669,-534.07,0.00012328,2]
[336397461,1724806251681,-1049.73,0.00012328,2]
[336397462,1724806251694,-500.0,0.00012328,2]
[336397463,1724806251704,-501.05,0.00012328,2]
[336397464,1724806251715,-500.0,0.00012328,2]
[336397465,1724806251726,-657.46,0.00012328,2]
[336397466,1724806251736,-1039.71,0.00012328,2]
[336397467,1724806251747,-500.0,0.00012328,2]
[336397468,1724806251758,-2307.19,0.00012328,2]
[336397469,1724806251770,-3508.51,0.00012328,2]
[336397470,1724806251781,-5222.05,0.00012328,2]
[336397471,1724806251793,-500.0,0.00012328,2]
[336397472,1724806251805,-16225.43,0.00012328,2]
[336397473,1724806251816,-4850.17,0.00012328,2]
[336397474,1724806251827,-463.30527446,0.00012328,2]
[336397475,1724806251840,-921.96,0.00012328,2]
[336397476,1724806251850,-919.1,0.00012328,2]
[336397477,1724806251862,-500.0,0.00012328,2]
[336397478,1724806251872,-2019.09,0.00012328,2]
[336397479,1724806251882,-3719.4,0.00012328,2]
[336397480,1724806251891,-500.0,0.00012328,2]
[336397481,1724806251901,-584.0,0.00012328,2]
[336397482,1724806251910,-3631.71,0.00012328,2]
[336397483,1724806251920,-500.0,0.00012328,2]
[336397484,1724806251931,-536.03,0.00012328,2]
[336397485,1724806251941,-1145.88,0.00012328,2]
[336397486,1724806251953,-500.0,0.00012328,2]
[336397487,1724806251963,-500.0,0.00012328,2]
[336397488,1724806251977,-500.0,0.00012328,2]
[336397489,1724806251988,-332.96,0.00012328,2]
[336397490,1724806251998,-191.28,0.00012328,2]
[336397491,1724806252010,-500.0,0.00012328,2]
[336397492,1724806252020,-500.0,0.00012328,2]
[336397493,1724806252031,-180.48,0.00012328,2]
[336397494,1724806252041,-587.01,0.00012328,2]
[336397495,1724806252051,-500.0,0.00012328,2]
[336397496,1724806252061,-500.0,0.00012328,2]
[336397497,1724806252071,-890.6,0.00012328,2]
[336397498,1724806252083,-500.0,0.00012328,2]
[336397499,1724806252094,-824.0,0.00012328,2]
[336397500,1724806252105,-2646.08,0.00012328,2]
[336397501,1724806252115,-500.0,0.00012328,2]
[336397502,1724806252126,-500.0,0.00012328,2]
[336397503,1724806252136,-500.0,0.00012328,2]
[336397504,1724806252145,-1443.84,0.00012328,2]
[336397505,1724806252155,-500.0,0.00012328,2]
[336397506,1724806252165,-505.52,0.00012328,2]
[336397507,1724806252174,-9140.54,0.00012328,2]
[336397508,1724806252184,-5985.82,0.00012328,2]
[336397509,1724806252197,-161.57346621,0.00012328,2]
[336397510,1724806252207,-500.0,0.00012328,2]
[336397511,1724806252217,-3446.53,0.00012328,2]
[336397512,1724806252227,-500.0,0.00012328,2]
[336397513,1724806252238,-500.0,0.00012328,2]
[336397514,1724806252249,-4310.38,0.00012328,2]
[336397515,1724806252260,-500.0,0.00012328,2]
[336397516,1724806252270,-500.0,0.00012328,2]
[336397517,1724806252280,-3212.2,0.00012328,2]
[336397518,1724806252291,-183.69809633,0.00012419,2]
[336397519,1724806252300,-1000.0,0.00012421,2]
[336397520,1724806252311,-1345.89769895,0.00012551,2]
[336397521,1724806252322,-500.0,0.00012602,2]
[336397522,1724806252333,-1201.41,0.00012602,2]
[336397523,1724806252343,-500.0,0.00012602,2]
[336397524,1724806252354,-500.0,0.00012602,2]
[336397525,1724806252371,-751.88,0.00012602,2]
[336397526,1724806252380,-500.0,0.00012602,2]
[336397527,1724806252391,-237.8,0.00012602,2]
[336397528,1724806252402,-1498.53,0.00012602,2]
[336397529,1724806252412,-500.0,0.00012602,2]
[336397530,1724806252421,-500.0,0.00012602,2]
[336397531,1724806252431,-500.0,0.00012602,2]
[336397532,1724806252445,-500.0,0.00012602,2]
[336397533,1724806252455,-500.0,0.00012602,2]
[336397534,1724806252465,-500.0,0.00012602,2]
[336397535,1724806252475,-644.80996809,0.00012602,2]
[336397536,1724806252487,-500.0,0.00012602,2]
[336397537,1724806252496,-500.0,0.00012602,2]
[336397538,1724806252507,-534.07,0.00012602,2]
[336397539,1724806252518,-1049.73,0.00012602,2]
[336397540,1724806252530,-500.0,0.00012602,2]
[336397541,1724806252542,-501.05,0.00012602,2]
[336397542,1724806252553,-500.0,0.00012602,2]
[336397543,1724806252564,-657.46,0.00012602,2]
[336397544,1724806252575,-1039.71,0.00012602,2]
[336397545,1724806252586,-500.0,0.00012602,2]
[336397546,1724806252596,-2307.19,0.00012602,2]
[336397547,1724806252607,-3508.51,0.00012602,2]
[336397548,1724806252618,-5222.05,0.00012602,2]
[336397549,1724806252629,-500.0,0.00012602,2]
[336397550,1724806252641,-16225.43,0.00012602,2]
[336397551,1724806252650,-4850.17,0.00012602,2]
[336397552,1724806252659,-921.96,0.00012602,2]
[336397553,1724806252668,-919.1,0.00012602,2]
[336397554,1724806252677,-500.0,0.00012602,2]
[336397555,1724806252686,-2019.09,0.00012602,2]
[336397556,1724806252696,-3719.4,0.00012602,2]
[336397557,1724806252706,-500.0,0.00012602,2]
[336397558,1724806252717,-584.0,0.00012602,2]
[336397559,1724806252726,-3631.71,0.00012602,2]
[336397560,1724806252735,-536.03,0.00012602,2]
[336397561,1724806252746,-1145.88,0.00012602,2]
[336397562,1724806252757,-500.0,0.00012602,2]
[336397563,1724806252766,-500.0,0.00012602,2]
[336397564,1724806252777,-500.0,0.00012602,2]
[336397565,1724806252786,-500.0,0.00012602,2]
[336397566,1724806252795,-216.01,0.00012602,2]
[336397567,1724806252804,-603.77365509,0.00012602,2]
[336397568,1724806252813,-890.6,0.00012602,2]
[336397569,1724806252822,-824.0,0.00012602,2]
[336397570,1724806252831,-2646.08,0.00012602,2]
[336397571,1724806252841,-500.0,0.00012602,2]
[336397572,1724806252853,-500.0,0.00012602,2]
[336397573,1724806252864,-1443.84,0.00012602,2]
[336397574,1724806252876,-230.28,0.00012602,2]
[336397575,1724806252887,-9140.54,0.00012602,2]
[336397576,1724806252897,-5985.82,0.00012602,2]
[336397577,1724806252908,-500.0,0.00012602,2]
[336397578,1724806252919,-3446.53,0.00012602,2]
[336397579,1724806252930,-500.0,0.00012602,2]
[336397580,1724806252942,-500.0,0.00012602,2]
[336397581,1724806252955,-4310.38,0.00012602,2]
[336397582,1724806252965,-500.0,0.00012602,2]
[336397583,1724806252974,-500.0,0.00012602,2]
[336397584,1724806252986,-3212.2,0.00012602,2]
[336397585,1724806252996,-2284.37692518,0.00012629,3]
[336397586,1724806253007,-151.0,0.00012776,2]
[336397587,1724806253018,-151.0,0.00012776,2]
[336397588,1724806253028,-463.579539,0.00012776,2]
[336397589,1724806253039,-704.956808,0.00012776,2]
[336397590,1724806253050,-704.956808,0.00012776,2]
[336397591,1724806253060,-151.0,0.00012776,2]
[336397592,1724806253070,-151.0,0.00012776,2]
[336397593,1724806253080,-837.036339,0.00012776,2]
[336397594,1724806253092,-837.036339,0.00012776,2]
[336397595,1724806253103,-151.0,0.00012776,2]
[336397596,1724806253113,-151.0,0.00012776,2]
[336397597,1724806253122,-409.622358,0.00012776,2]
[336397598,1724806253133,-409.622358,0.00012776,2]
[336397599,1724806253142,-151.0,0.00012776,2]
[336397600,1724806253154,-151.0,0.00012776,2]
[336397601,1724806253165,-482.00535,0.00012776,2]
[336397602,1724806253175,-482.00535,0.00012776,2]
[336397603,1724806253184,-151.0,0.00012776,2]
[336397604,1724806253195,-746.013503,0.00012776,2]
[336397605,1724806253205,-746.013503,0.00012776,2]
[336397606,1724806253215,-1187.208526,0.00012776,2]
[336397607,1724806253224,-1187.208526,0.00012776,2]
[336397608,1724806253235,-1031.421549,0.00012776,2]
[336397609,1724806253245,-1031.421549,0.00012776,2]
[336397610,1724806253255,-584.570329,0.00012776,2]
[336397611,1724806253265,-275.739352,0.00012776,2]
[336397612,1724806253276,-584.570329,0.00012776,2]
[336397613,1724806253288,-238.440913,0.00012776,2]
[336397614,1724806253297,-275.739352,0.00012776,2]
[336397615,1724806253308,-238.440913,0.00012776,2]
[336397616,1724806253317,-7528.138438,0.00012776,2]
[336397617,1724806253327,-7528.138438,0.00012776,2]
[336397618,1724806253338,-109775.7358678,0.00012873,2]
[336397619,1724806253347,-151.0,0.00012873,2]
[336397620,1724806253358,-151.0,0.00012873,2]
[336397621,1724806253371,-151.0,0.00012873,2]
[336397622,1724806253382,-444.616484,0.00012873,2]
[336397623,1724806253393,-444.616484,0.00012873,2]
[336397624,1724806253403,-151.0,0.00012873,2]
[336397625,1724806253415,-151.0,0.00012873,2]
[336397626,1724806253425,-596.168019,0.00012873,2]
[336397627,1724806253434,-596.168019,0.00012873,2]
[336397628,1724806253456,-151.0,0.00012873,2]
[336397629,1724806253467,-176.348518,0.00012873,2]
[336397630,1724806253477,-176.348518,0.00012873,2]
[336397631,1724806253488,-151.0,0.00012875,2]
[336397632,1724806253499,-151.0,0.00012875,2]
[336397633,1724806253509,-1772.920623,0.00012875,2]
[336397634,1724806253518,-1772.920623,0.00012875,2]
[336397635,1724806253527,-151.0,0.00012875,2]
[336397636,1724806253536,-500.0,0.00012876,2]
[336397637,1724806253546,-1201.41,0.00012876,2]
[336397638,1724806253555,-500.0,0.00012876,2]
[336397639,1724806253565,-500.0,0.00012876,2]
[336397640,1724806253576,-751.88,0.00012876,2]
[336397641,1724806253586,-500.0,0.00012876,2]
[336397642,1724806253596,-1498.53,0.00012876,2]
[336397643,1724806253606,-500.0,0.00012876,2]
[336397644,1724806253615,-159.02,0.00012876,2]
[336397645,1724806253626,-500.0,0.00012876,2]
[336397646,1724806253635,-353.77,0.00012876,2]
[336397647,1724806253645,-500.0,0.00012876,2]
[336397648,1724806253654,-350.88,0.00012876,2]
[336397649,1724806253663,-500.0,0.00012876,2]
[336397650,1724806253672,-500.0,0.00012876,2]
[336397651,1724806253790,-534.07,0.00012876,2]
[336397652,1724806253813,-151.0,0.00012876,2]
[336397653,1724806253822,-1049.73,0.00012876,2]
[336397654,1724806253832,-151.0,0.00012876,2]
[336397655,1724806253842,-500.0,0.00012876,2]
[336397656,1724806253851,-151.0,0.00012876,2]
[336397657,1724806253861,-501.05,0.00012876,2]
[336397658,1724806253870,-829.318633,0.00012876,2]
[336397659,1724806253879,-500.0,0.00012876,2]
[336397660,1724806253889,-657.46,0.00012876,2]
[336397661,1724806253900,-829.318633,0.00012876,2]
[336397662,1724806253909,-151.0,0.00012876,2]
[336397663,1724806253919,-912.605783,0.00012876,2]
[336397664,1724806253931,-912.605783,0.00012876,2]
[336397665,1724806253943,-151.0,0.00012876,2]
[336397666,1724806253952,-151.0,0.00012876,2]
[336397667,1724806253962,-461.101408,0.00012876,2]
[336397668,1724806253971,-461.101408,0.00012876,2]
[336397669,1724806253981,-151.0,0.00012876,2]
[336397670,1724806253990,-1039.71,0.00012876,2]
[336397671,1724806254000,-500.0,0.00012876,2]
[336397672,1724806254009,-2307.19,0.00012876,2]
[336397673,1724806254018,-3508.51,0.00012876,2]
[336397674,1724806254027,-5222.05,0.00012876,2]
[336397675,1724806254036,-500.0,0.00012876,2]
[336397676,1724806254045,-16225.43,0.00012876,2]
[336397677,1724806254055,-4850.17,0.00012876,2]
[336397678,1724806254066,-921.96,0.00012876,2]
[336397679,1724806254075,-919.1,0.00012876,2]
[336397680,1724806254085,-500.0,0.00012876,2]
[336397681,1724806254096,-2019.09,0.00012876,2]
[336397682,1724806254107,-3719.4,0.00012876,2]
[336397683,1724806254118,-500.0,0.00012876,2]
[336397684,1724806254128,-584.0,0.00012876,2]
[336397685,1724806254137,-3631.71,0.00012876,2]
[336397686,1724806254148,-536.03,0.00012876,2]
[336397687,1724806254158,-1145.88,0.00012876,2]
[336397688,1724806254168,-500.0,0.00012876,2]
[336397689,1724806254178,-500.0,0.00012876,2]
[336397690,1724806254187,-500.0,0.00012876,2]
[336397691,1724806254198,-500.0,0.00012876,2]
[336397692,1724806254207,-890.6,0.00012876,2]
[336397693,1724806254219,-824.0,0.00012876,2]
[336397694,1724806254230,-2646.08,0.00012876,2]
[336397695,1724806254240,-604.63,0.00012876,2]
[336397696,1724806254251,-500.0,0.00012876,2]
[336397697,1724806254262,-1443.84,0.00012876,2]
[336397698,1724806254272,-9140.54,0.00012876,2]
[336397699,1724806254283,-5985.82,0.00012876,2]
[336397700,1724806254293,-500.0,0.00012876,2]
[336397701,1724806254303,-3446.53,0.00012876,2]
[336397702,1724806254315,-500.0,0.00012876,2]
[336397703,1724806254327,-4310.38,0.00012876,2]
[336397704,1724806254339,-500.0,0.00012876,2]
[336397705,1724806254349,-276.23,0.00012876,2]
[336397706,1724806254360,-1697.18003192,0.00012876,2]
[336397707,1724806254556,-1515.01996808,0.00012876,2]
[336397708,1724806254565,-1218.31357571,0.00012898,2]
[336397709,1724806254576,-6000.19646002,0.000129,2]
[336397710,1724806254585,-729.39083996,0.00012934,2]
[336397711,1724806254595,-253.11762544,0.00012985,2]
[336397712,1724806254605,-947.018531,0.00012985,2]
[336397713,1724806254615,-899.54550214,0.00012985,2]
[336397714,1724806254625,-493.73689206,0.00012989,2]
[336397715,1724806254635,-174.81332427,0.00012989,2]
[336397716,1724806254645,-1400.43421124,0.00012989,2]
[336397717,1724806254656,-160.50654328,0.00012991,2]
[336397718,1724806254666,-242.93742619,0.00012991,2]
[336397719,1724806254676,-252.39906694,0.00012991,2]
[336397720,1724806254686,-600.0,0.00012998,2]
[336397721,1724806254697,-254.84954226,0.00012999,2]
[336397722,1724806254707,-296.13258418,0.00012999,2]
[336397723,1724806254717,-811.78467002,0.00012999,2]
[336397724,1724806254727,-207.3264095,0.00012999,2]
[336397725,1724806254736,-150.112233,0.00013,2]
[336397726,1724806254746,-150.112233,0.00013,2]
[336397727,1724806254757,-150.112233,0.00013,2]
[336397728,1724806254767,-863.22054056,0.00013,2]
[336397729,1724806254776,-1500.0,0.00013019,2]
[336397730,1724806254786,-155.00703824,0.00013025,2]
[336397731,1724806254796,-154.95091821,0.00013025,2]
[336397732,1724806254806,-600.0,0.00013042,2]
[336397733,1724806254816,-345.77371257,0.00013051,2]
[336397734,1724806254826,-465.00343768,0.00013075,2]
[336397735,1724806254836,-153.0,0.00013109,2]
[336397736,1724806254846,-150.0,0.00013115,2]
[336397737,1724806254855,-522.0,0.00013115,2]
[336397738,1724806254866,-500.0,0.0001315,2]
[336397739,1724806254877,-1201.41,0.0001315,2]
[336397740,1724806254887,-367.25,0.0001315,2]
[336397741,1724806254896,-500.0,0.0001315,2]
[336397742,1724806254906,-751.88,0.0001315,2]
[336397743,1724806254916,-500.0,0.0001315,2]
[336397744,1724806254925,-1498.53,0.0001315,2]
[336397745,1724806254935,-500.0,0.0001315,2]
[336397746,1724806254946,-364.11448145,0.0001315,2]
[336397747,1724806254989,-500.0,0.00010958,2]
[336397748,1724806254998,-338.5,0.00012328,2]
[336397749,1724806255008,-215.58730487,0.0001315,2]
[336397750,1724806255017,-637.93,0.0001315,2]
[336397751,1724806255027,-500.0,0.0001315,2]
[336397752,1724806255035,-354.59042652,0.0001315,2]
[336397753,1724806255317,-500.0,0.00010958,2]
[336397754,1724806255327,-150.0,0.00013115,2]
[336397755,1724806255337,-145.40957348,0.0001315,2]
[336397756,1724806255346,-534.07,0.0001315,2]
[336397757,1724806255357,-1049.73,0.0001315,2]
[336397758,1724806255369,-188.3448529,0.0001315,2]
[336397759,1724806255380,-501.05,0.0001315,2]
[336397760,1724806255390,-500.0,0.0001315,2]
[336397761,1724806255400,-657.46,0.0001315,2]
[336397762,1724806255409,-1039.71,0.0001315,2]
[336397763,1724806255419,-500.0,0.0001315,2]
[336397764,1724806255428,-2307.19,0.0001315,2]
[336397765,1724806255438,-3508.51,0.0001315,2]
[336397766,1724806255454,-5222.05,0.0001315,2]
[336397767,1724806255463,-500.0,0.0001315,2]